[Event "*** SCC Grand Prix: Titled Tuesday Blitz"]
[Site "Chess.com"]
[Date "2020.06.09"]
[Round "3"]
[White "Shushik"]
[Black "bazar-wokzal"]
[Result "0-1"]
[WhiteElo "2169"]
[BlackElo "2373"]
[TimeControl "180+1"]
[EndTime "9:31:12 PDT"]
[Termination "bazar-wokzal won on time"]

1. e4 {[%clk 0:03:00.9]} 1... Nc6 {[%clk 0:02:59.3]} 2. d4 {[%clk 0:02:59.5]}
2... d5 {[%clk 0:02:59.4]} 3. e5 {[%clk 0:02:58.5]} 3... h5 {[%clk 0:02:58.9]}
4. f4 {[%clk 0:02:54.9]} 4... Bg4 {[%clk 0:02:58.3]} 5. Be2 {[%clk 0:02:50.5]}
5... Qd7 {[%clk 0:02:56.6]} 6. Nf3 {[%clk 0:02:49.1]} 6... O-O-O {[%clk
0:02:55.6]} 7. Be3 {[%clk 0:02:46.1]} 7... Nh6 {[%clk 0:02:54.7]} 8. Nc3 {[%clk
0:02:41.3]} 8... e6 {[%clk 0:02:52.3]} 9. Qd2 {[%clk 0:02:33.9]} 9... Bb4 {[%clk
0:02:51.1]} 10. a3 {[%clk 0:02:30.6]} 10... Bxc3 {[%clk 0:02:35.9]} 11. Qxc3
{[%clk 0:02:30]} 11... Nf5 {[%clk 0:02:36]} 12. Bf2 {[%clk 0:02:29.5]} 12... f6
{[%clk 0:02:32.1]} 13. O-O-O {[%clk 0:02:21]} 13... fxe5 {[%clk 0:02:26.5]} 14.
dxe5 {[%clk 0:02:13.9]} 14... Bxf3 {[%clk 0:02:11.2]} 15. Bxf3 {[%clk
0:02:13.2]} 15... Kb8 {[%clk 0:02:05.1]} 16. h3 {[%clk 0:02:04.4]} 16... h4
{[%clk 0:02:04.2]} 17. Qc5 {[%clk 0:02:00.8]} 17... b6 {[%clk 0:01:59.7]} 18.
Qc3 {[%clk 0:01:57.4]} 18... Nce7 {[%clk 0:01:54.3]} 19. Qb3 {[%clk 0:01:49.2]}
19... Nc6 {[%clk 0:01:27.5]} 20. Be2 {[%clk 0:01:42.3]} 20... Na5 {[%clk
0:01:26.3]} 21. Qc3 {[%clk 0:01:36.8]} 21... Qc6 {[%clk 0:01:24.2]} 22. Qb4
{[%clk 0:01:25]} 22... Qb7 {[%clk 0:01:18.9]} 23. Kb1 {[%clk 0:01:18.3]} 23...
c5 {[%clk 0:01:17]} 24. Bxc5 {[%clk 0:01:16.4]} 24... Nc6 {[%clk 0:01:15.6]} 25.
Qc3 {[%clk 0:01:11.9]} 25... bxc5 {[%clk 0:01:14.6]} 26. Qxc5 {[%clk 0:01:12.1]}
26... Qb6 {[%clk 0:01:12.8]} 27. Qc3 {[%clk 0:01:08.9]} 27... Rc8 {[%clk
0:01:11.9]} 28. Qe1 {[%clk 0:01:01.3]} 28... Ne3 {[%clk 0:01:09.3]} 29. Rd3
{[%clk 0:00:44.6]} 29... Ka8 {[%clk 0:01:04.1]} 30. Rb3 {[%clk 0:00:42.5]} 30...
Qc5 {[%clk 0:00:59.8]} 31. Rc3 {[%clk 0:00:41.5]} 31... Qd4 {[%clk 0:00:52.8]}
32. Ba6 {[%clk 0:00:39.5]} 32... Rb8 {[%clk 0:00:46]} 33. Qxe3 {[%clk
0:00:37.1]} 33... Rb6 {[%clk 0:00:39.2]} 34. Qxd4 {[%clk 0:00:31.3]} 34... Nxd4
{[%clk 0:00:38]} 35. Bd3 {[%clk 0:00:31.5]} 35... Rf8 {[%clk 0:00:33.8]} 36. Rf1
{[%clk 0:00:29.5]} 36... Rb7 {[%clk 0:00:30.7]} 37. Bg6 {[%clk 0:00:19.7]} 37...
Ne2 {[%clk 0:00:27.7]} 38. Rcf3 {[%clk 0:00:19.6]} 38... Ng3 {[%clk 0:00:25.3]}
39. R1f2 {[%clk 0:00:19.2]} 39... a5 {[%clk 0:00:23.8]} 40. b3 {[%clk
0:00:18.5]} 40... Ka7 {[%clk 0:00:22.4]} 41. Kc1 {[%clk 0:00:18.1]} 41... Rc7
{[%clk 0:00:20.2]} 42. Kd1 {[%clk 0:00:16.7]} 42... Kb6 {[%clk 0:00:20.3]} 43.
Kd2 {[%clk 0:00:15.6]} 43... a4 {[%clk 0:00:19.8]} 44. b4 {[%clk 0:00:14.9]}
44... Rc4 {[%clk 0:00:19.8]} 45. Bd3 {[%clk 0:00:13.3]} 45... Rc7 {[%clk
0:00:19.5]} 46. Bg6 {[%clk 0:00:12.7]} 46... Rc4 {[%clk 0:00:19.3]} 47. Bd3
{[%clk 0:00:12.3]} 47... Ne4+ {[%clk 0:00:16.7]} 48. Bxe4 {[%clk 0:00:11.1]}
48... Rxe4 {[%clk 0:00:17.2]} 49. c3 {[%clk 0:00:08.2]} 49... Kb5 {[%clk
0:00:17.3]} 50. Kc2 {[%clk 0:00:07.7]} 50... Kc4 {[%clk 0:00:17.2]} 51. Kd2
{[%clk 0:00:07.6]} 51... Kb3 {[%clk 0:00:16]} 52. Rf1 {[%clk 0:00:07.7]} 52...
Kxa3 {[%clk 0:00:14.7]} 53. Ra1+ {[%clk 0:00:07.8]} 53... Kb3 {[%clk 0:00:14.7]}
54. Rb1+ {[%clk 0:00:07.1]} 54... Kc4 {[%clk 0:00:14.5]} 55. Ra1 {[%clk
0:00:07.2]} 55... Rfxf4 {[%clk 0:00:12.8]} 56. Rxa4 {[%clk 0:00:06]} 56... Rxf3
{[%clk 0:00:13.1]} 57. gxf3 {[%clk 0:00:06]} 57... Rxe5 {[%clk 0:00:13.8]} 58.
Ra7 {[%clk 0:00:05.8]} 58... Rg5 {[%clk 0:00:13.4]} 59. Rc7+ {[%clk 0:00:05.5]}
59... Kb5 {[%clk 0:00:13.4]} 60. Rc5+ {[%clk 0:00:05.4]} 60... Kb6 {[%clk
0:00:13.5]} 61. Rc8 {[%clk 0:00:04.4]} 61... Rg3 {[%clk 0:00:13.4]} 62. Rg8
{[%clk 0:00:04]} 62... Rxh3 {[%clk 0:00:12.1]} 63. Rxg7 {[%clk 0:00:04.1]} 63...
Rxf3 {[%clk 0:00:12.8]} 64. Rg6 {[%clk 0:00:04.2]} 64... d4 {[%clk 0:00:12.3]}
65. Rxe6+ {[%clk 0:00:04]} 65... Kb5 {[%clk 0:00:12.4]} 66. Re5+ {[%clk
0:00:03.9]} 66... Kc4 {[%clk 0:00:12.4]} 67. Re4 {[%clk 0:00:03.9]} 67... Rxc3
{[%clk 0:00:11.3]} 68. Rxh4 {[%clk 0:00:04]} 68... Rb3 {[%clk 0:00:11.7]} 69.
Kc2 {[%clk 0:00:03.5]} 69... Rxb4 {[%clk 0:00:11.5]} 70. Rh8 {[%clk 0:00:02.8]}
70... d3+ {[%clk 0:00:11.2]} 71. Kd1 {[%clk 0:00:03]} 71... Kc3 {[%clk
0:00:10.4]} 72. Rc8+ {[%clk 0:00:02.5]} 72... Rc4 {[%clk 0:00:10.3]} 73. Rd8
{[%clk 0:00:02.2]} 73... Rh4 {[%clk 0:00:07.5]} 74. Rc8+ {[%clk 0:00:01.9]}
74... Rc4 {[%clk 0:00:06.6]} 0-1

[Event "*** SCC Grand Prix: Titled Tuesday Blitz"]
[Site "Chess.com"]
[Date "2020.06.09"]
[Round "3"]
[White "PavelChernomordik"]
[Black "Azatic"]
[Result "1-0"]
[WhiteElo "2280"]
[BlackElo "2491"]
[TimeControl "180+1"]
[EndTime "9:31:32 PDT"]
[Termination "PavelChernomordik won by resignation"]

1. e4 {[%clk 0:03:00.9]} 1... c5 {[%clk 0:02:59.9]} 2. Nf3 {[%clk 0:02:59.2]}
2... e6 {[%clk 0:03:00.1]} 3. g3 {[%clk 0:02:58.6]} 3... Nc6 {[%clk 0:02:59.8]}
4. Bg2 {[%clk 0:02:58.2]} 4... d6 {[%clk 0:03:00.1]} 5. O-O {[%clk 0:02:58.1]}
5... Nf6 {[%clk 0:03:00.4]} 6. d3 {[%clk 0:02:58.1]} 6... Be7 {[%clk 0:02:59.7]}
7. Qe2 {[%clk 0:02:55.9]} 7... Qc7 {[%clk 0:02:58.5]} 8. c3 {[%clk 0:02:54.6]}
8... e5 {[%clk 0:02:56.8]} 9. Bg5 {[%clk 0:02:48.5]} 9... O-O {[%clk 0:02:55.3]}
10. a4 {[%clk 0:02:46.5]} 10... h6 {[%clk 0:02:48.3]} 11. Bxf6 {[%clk
0:02:45.7]} 11... Bxf6 {[%clk 0:02:49.2]} 12. Nbd2 {[%clk 0:02:46.1]} 12... Be6
{[%clk 0:02:43.5]} 13. Nc4 {[%clk 0:02:44.9]} 13... d5 {[%clk 0:02:39.1]} 14.
exd5 {[%clk 0:02:43.3]} 14... Bxd5 {[%clk 0:02:40]} 15. Nfd2 {[%clk 0:02:43.4]}
15... Bxg2 {[%clk 0:02:34.5]} 16. Kxg2 {[%clk 0:02:42.1]} 16... Rad8 {[%clk
0:02:34.3]} 17. Ne4 {[%clk 0:02:40.7]} 17... Be7 {[%clk 0:02:34]} 18. g4 {[%clk
0:02:37.5]} 18... Qd7 {[%clk 0:02:31.5]} 19. Rfd1 {[%clk 0:02:34]} 19... Qe6
{[%clk 0:02:05.2]} 20. Ne3 {[%clk 0:02:28.6]} 20... g6 {[%clk 0:02:03.4]} 21.
Ng3 {[%clk 0:02:26.1]} 21... Bg5 {[%clk 0:01:58.2]} 22. Ne4 {[%clk 0:02:23.8]}
22... Be7 {[%clk 0:01:39.5]} 23. Kh1 {[%clk 0:02:23.2]} 23... Kh7 {[%clk
0:01:37.6]} 24. Rg1 {[%clk 0:02:20.1]} 24... b6 {[%clk 0:01:28.1]} 25. g5 {[%clk
0:02:19]} 25... h5 {[%clk 0:01:24.2]} 26. Nc4 {[%clk 0:02:11.6]} 26... Kg7
{[%clk 0:01:19.6]} 27. Qf3 {[%clk 0:02:09.5]} 27... Qf5 {[%clk 0:01:10.4]} 28.
Qg3 {[%clk 0:02:05.6]} 28... h4 {[%clk 0:01:05.8]} 29. Qe3 {[%clk 0:02:01.4]}
29... Rd7 {[%clk 0:00:59]} 30. Rad1 {[%clk 0:01:56.3]} 30... Rfd8 {[%clk
0:00:58.7]} 31. Rd2 {[%clk 0:01:51.8]} 31... Re8 {[%clk 0:00:57.3]} 32. h3
{[%clk 0:01:45.6]} 32... Nd8 {[%clk 0:00:56]} 33. Rg4 {[%clk 0:01:44.4]} 33...
Ne6 {[%clk 0:00:55.9]} 34. Rxh4 {[%clk 0:01:38.2]} 34... Nxg5 {[%clk 0:00:51.3]}
35. Ng3 {[%clk 0:01:30.6]} 35... Qf3+ {[%clk 0:00:44.8]} 36. Qxf3 {[%clk
0:01:26.2]} 36... Nxf3 {[%clk 0:00:45.7]} 37. Rg4 {[%clk 0:01:18.8]} 37... Nxd2
{[%clk 0:00:45.2]} 38. Nxd2 {[%clk 0:01:17.3]} 38... Kf8 {[%clk 0:00:41.7]} 39.
Nc4 {[%clk 0:01:13.5]} 39... Bf6 {[%clk 0:00:38.9]} 40. Ne4 {[%clk 0:01:13.2]}
40... Bg7 {[%clk 0:00:38.6]} 41. Rg3 {[%clk 0:01:12.3]} 41... Red8 {[%clk
0:00:37.9]} 42. Re3 {[%clk 0:01:04.3]} 42... Rxd3 {[%clk 0:00:37.1]} 43. Kg2
{[%clk 0:01:04.7]} 43... Rxe3 {[%clk 0:00:36.9]} 44. fxe3 {[%clk 0:01:04]} 44...
Bh6 {[%clk 0:00:37.2]} 45. Nxe5 {[%clk 0:01:00.7]} 45... Bxe3 {[%clk 0:00:30.9]}
46. Nc6 {[%clk 0:01:00.2]} 46... Re8 {[%clk 0:00:26.8]} 47. Kf3 {[%clk
0:01:00.1]} 47... Bc1 {[%clk 0:00:25.8]} 48. Nxa7 {[%clk 0:00:58.7]} 48... Bxb2
{[%clk 0:00:24.7]} 49. Nb5 {[%clk 0:00:58.9]} 49... Bc1 {[%clk 0:00:24]} 50. a5
{[%clk 0:00:55.7]} 50... bxa5 {[%clk 0:00:23.6]} 51. Nxc5 {[%clk 0:00:55.2]}
51... Kg7 {[%clk 0:00:21.8]} 52. Nb3 {[%clk 0:00:54.1]} 52... Bg5 {[%clk
0:00:20.4]} 53. Nxa5 {[%clk 0:00:53.6]} 53... Re5 {[%clk 0:00:18.8]} 54. c4
{[%clk 0:00:53.2]} 54... Rc5 {[%clk 0:00:18.6]} 55. Ke4 {[%clk 0:00:49.1]} 55...
Be7 {[%clk 0:00:17.2]} 56. Kd4 {[%clk 0:00:48.3]} 56... Rh5 {[%clk 0:00:17.1]}
57. Nc6 {[%clk 0:00:47.2]} 57... Bf6+ {[%clk 0:00:16.6]} 58. Ke4 {[%clk
0:00:45.2]} 58... Rxh3 {[%clk 0:00:17.5]} 59. Nd6 {[%clk 0:00:44.8]} 59... Rh4+
{[%clk 0:00:17.5]} 60. Kd5 {[%clk 0:00:43.9]} 60... Rh1 {[%clk 0:00:18.4]} 61.
Ne8+ {[%clk 0:00:43]} 61... Kf8 {[%clk 0:00:19.3]} 62. Nxf6 {[%clk 0:00:43.8]}
62... Rd1+ {[%clk 0:00:20.2]} 63. Kc5 {[%clk 0:00:42.9]} 63... g5 {[%clk
0:00:20.2]} 64. Ne4 {[%clk 0:00:42]} 64... g4 {[%clk 0:00:18.7]} 65. Ne5 {[%clk
0:00:42.1]} 65... Re1 {[%clk 0:00:14.2]} 66. Kd5 {[%clk 0:00:41.1]} 66... f5
{[%clk 0:00:12.7]} 67. Ng5 {[%clk 0:00:37]} 67... g3 {[%clk 0:00:11.7]} 68. Nef3
{[%clk 0:00:33.9]} 68... g2 {[%clk 0:00:11.3]} 69. c5 {[%clk 0:00:30.6]} 69...
Ke7 {[%clk 0:00:11.3]} 70. c6 {[%clk 0:00:29.6]} 70... f4 {[%clk 0:00:11.2]} 71.
Nh3 {[%clk 0:00:25.9]} 71... Re3 {[%clk 0:00:10.3]} 72. Nhg1 {[%clk 0:00:24.5]}
72... Kd8 {[%clk 0:00:07.9]} 73. Kd6 {[%clk 0:00:23.4]} 73... Kc8 {[%clk
0:00:07.8]} 74. Ne5 {[%clk 0:00:20]} 74... Re1 {[%clk 0:00:05.1]} 75. Nef3
{[%clk 0:00:19.7]} 75... Re4 {[%clk 0:00:05.1]} 76. Kd5 {[%clk 0:00:18.6]} 76...
Re3 {[%clk 0:00:05]} 77. Kd6 {[%clk 0:00:17.2]} 77... Re1 {[%clk 0:00:04.6]} 78.
Nxe1 {[%clk 0:00:15.7]} 78... f3 {[%clk 0:00:04.2]} 79. Nexf3 {[%clk 0:00:15.2]}
79... Kd8 {[%clk 0:00:05.1]} 80. Ne1 {[%clk 0:00:15.6]} 80... Kc8 {[%clk
0:00:06]} 81. Nxg2 {[%clk 0:00:15.5]} 81... Kd8 {[%clk 0:00:06.9]} 82. Nf4
{[%clk 0:00:15.9]} 82... Kc8 {[%clk 0:00:07.8]} 83. Nd5 {[%clk 0:00:16.1]} 83...
Kd8 {[%clk 0:00:06.6]} 84. c7+ {[%clk 0:00:15.7]} 84... Kc8 {[%clk 0:00:07.5]}
85. Ne7+ {[%clk 0:00:14.9]} 85... Kb7 {[%clk 0:00:08.4]} 86. c8=Q+ {[%clk
0:00:14.7]} 86... Ka7 {[%clk 0:00:09.3]} 87. Qc5+ {[%clk 0:00:13.9]} 87... Kb8
{[%clk 0:00:10.2]} 88. Qc7+ {[%clk 0:00:12.7]} 88... Ka8 {[%clk 0:00:11.1]} 89.
Qa5+ {[%clk 0:00:12.7]} 89... Kb7 {[%clk 0:00:11.1]} 90. Nc6 {[%clk 0:00:12.9]}
90... Kc8 {[%clk 0:00:10.7]} 1-0

[Event "*** SCC Grand Prix: Titled Tuesday Blitz"]
[Site "Chess.com"]
[Date "2020.06.09"]
[Round "3"]
[White "Evgeny81"]
[Black "juniortay"]
[Result "1-0"]
[WhiteElo "2754"]
[BlackElo "2427"]
[TimeControl "180+1"]
[EndTime "9:31:36 PDT"]
[Termination "Evgeny81 won on time"]

1. d4 {[%clk 0:03:00.9]} 1... d5 {[%clk 0:02:59.5]} 2. Nf3 {[%clk 0:03:00.2]}
2... c5 {[%clk 0:02:58.7]} 3. c3 {[%clk 0:02:56.4]} 3... cxd4 {[%clk 0:02:57.5]}
4. cxd4 {[%clk 0:02:56.2]} 4... Nc6 {[%clk 0:02:58.4]} 5. Nc3 {[%clk 0:02:56]}
5... Nf6 {[%clk 0:02:59.3]} 6. Bf4 {[%clk 0:02:56]} 6... Ne4 {[%clk 0:02:59.5]}
7. e3 {[%clk 0:02:54.7]} 7... Nxc3 {[%clk 0:02:59.4]} 8. bxc3 {[%clk 0:02:54.2]}
8... g6 {[%clk 0:02:59.4]} 9. Be2 {[%clk 0:02:51.9]} 9... Bg7 {[%clk 0:02:59.1]}
10. O-O {[%clk 0:02:51.9]} 10... O-O {[%clk 0:02:59.3]} 11. h3 {[%clk
0:02:47.7]} 11... a6 {[%clk 0:02:59]} 12. c4 {[%clk 0:02:45.5]} 12... dxc4
{[%clk 0:02:58.5]} 13. Bxc4 {[%clk 0:02:46.4]} 13... b5 {[%clk 0:02:58.6]} 14.
Bd3 {[%clk 0:02:43.9]} 14... Nb4 {[%clk 0:02:54.8]} 15. Be4 {[%clk 0:02:40.2]}
15... Nd5 {[%clk 0:02:50.4]} 16. Rc1 {[%clk 0:02:29.6]} 16... Bb7 {[%clk
0:02:48.6]} 17. Nd2 {[%clk 0:02:23.2]} 17... Ra7 {[%clk 0:02:23.4]} 18. Bg3
{[%clk 0:02:19.7]} 18... Qd7 {[%clk 0:02:19.3]} 19. Rc5 {[%clk 0:02:13.6]} 19...
e6 {[%clk 0:02:16.8]} 20. Qc2 {[%clk 0:02:01.9]} 20... Ba8 {[%clk 0:02:05.8]}
21. Rc1 {[%clk 0:01:59]} 21... h6 {[%clk 0:01:59.7]} 22. Qb1 {[%clk 0:01:45.5]}
22... Kh7 {[%clk 0:01:53.5]} 23. Nb3 {[%clk 0:01:43.9]} 23... Qe7 {[%clk
0:01:26.8]} 24. Na5 {[%clk 0:01:27.7]} 24... h5 {[%clk 0:01:11.2]} 25. Nc6
{[%clk 0:01:20.7]} 25... Bxc6 {[%clk 0:01:09.9]} 26. Rxc6 {[%clk 0:01:21.6]}
26... Qg5 {[%clk 0:01:00.4]} 27. R1c5 {[%clk 0:01:10.8]} 27... h4 {[%clk
0:00:52.2]} 28. Bh2 {[%clk 0:01:02]} 28... Rd8 {[%clk 0:00:45.6]} 29. Qe1 {[%clk
0:00:50.2]} 29... b4 {[%clk 0:00:39.6]} 30. Bxd5 {[%clk 0:00:45.7]} 30... exd5
{[%clk 0:00:40.5]} 31. Bf4 {[%clk 0:00:40.2]} 31... Qf5 {[%clk 0:00:39.5]} 32.
Ra5 {[%clk 0:00:31.1]} 32... Rb7 {[%clk 0:00:38.9]} 33. Rcxa6 {[%clk 0:00:28]}
33... b3 {[%clk 0:00:38.6]} 34. axb3 {[%clk 0:00:26.4]} 34... Rxb3 {[%clk
0:00:39.5]} 35. Ra1 {[%clk 0:00:25.2]} 35... Rdb8 {[%clk 0:00:38.8]} 36. Bxb8
{[%clk 0:00:24.2]} 36... Rxb8 {[%clk 0:00:39.7]} 37. Ra8 {[%clk 0:00:20.9]}
37... Rb2 {[%clk 0:00:38]} 38. R8a2 {[%clk 0:00:20]} 38... Rb3 {[%clk
0:00:37.2]} 39. Rd1 {[%clk 0:00:19.5]} 39... g5 {[%clk 0:00:34.6]} 40. Qe2
{[%clk 0:00:19.3]} 40... Qg6 {[%clk 0:00:29.9]} 41. Qc2 {[%clk 0:00:18.5]} 41...
Rb6 {[%clk 0:00:25.6]} 42. Qxg6+ {[%clk 0:00:18.1]} 42... Rxg6 {[%clk
0:00:26.5]} 43. Ra5 {[%clk 0:00:18.3]} 43... g4 {[%clk 0:00:23.4]} 44. hxg4
{[%clk 0:00:17.6]} 44... Rxg4 {[%clk 0:00:20]} 45. Rxd5 {[%clk 0:00:17.7]} 45...
h3 {[%clk 0:00:20.9]} 46. Rh5+ {[%clk 0:00:17.8]} 46... Kg6 {[%clk 0:00:20]} 47.
Rxh3 {[%clk 0:00:18.7]} 47... Bf6 {[%clk 0:00:19.8]} 48. Rg3 {[%clk 0:00:18.5]}
48... Rxg3 {[%clk 0:00:19.3]} 49. fxg3 {[%clk 0:00:19.4]} 49... Kf5 {[%clk
0:00:19.7]} 50. Kf2 {[%clk 0:00:19.1]} 50... Ke4 {[%clk 0:00:19.6]} 51. Rb1
{[%clk 0:00:19.3]} 51... Bg5 {[%clk 0:00:20.5]} 52. Rb3 {[%clk 0:00:19.3]} 52...
Bh6 {[%clk 0:00:17.6]} 53. Ke2 {[%clk 0:00:19.2]} 53... f5 {[%clk 0:00:16.9]}
54. Rb6 {[%clk 0:00:16.9]} 54... Bg5 {[%clk 0:00:17.8]} 55. Re6+ {[%clk
0:00:16.6]} 55... Kd5 {[%clk 0:00:18.3]} 56. Re5+ {[%clk 0:00:16.9]} 56... Kd6
{[%clk 0:00:19.1]} 57. Rxf5 {[%clk 0:00:17.3]} 57... Be7 {[%clk 0:00:20]} 58.
Kf3 {[%clk 0:00:17.6]} 58... Ke6 {[%clk 0:00:18.6]} 59. e4 {[%clk 0:00:17]}
59... Bd6 {[%clk 0:00:18]} 60. g4 {[%clk 0:00:16.3]} 60... Be7 {[%clk 0:00:17]}
61. g5 {[%clk 0:00:16.3]} 61... Bd6 {[%clk 0:00:16.2]} 62. Rf6+ {[%clk
0:00:15.1]} 62... Ke7 {[%clk 0:00:15.5]} 63. Rxd6 {[%clk 0:00:15.3]} 63... Kxd6
{[%clk 0:00:15.3]} 64. Kf4 {[%clk 0:00:15.6]} 64... Ke7 {[%clk 0:00:16.2]} 65.
Kf5 {[%clk 0:00:15.5]} 65... Kf7 {[%clk 0:00:15.3]} 66. e5 {[%clk 0:00:15.7]}
66... Ke7 {[%clk 0:00:15]} 67. d5 {[%clk 0:00:16]} 67... Kf7 {[%clk 0:00:15.5]}
68. d6 {[%clk 0:00:16.4]} 68... Kg7 {[%clk 0:00:16.4]} 69. e6 {[%clk 0:00:16.6]}
69... Kf8 {[%clk 0:00:16]} 70. Kf6 {[%clk 0:00:16.6]} 70... Ke8 {[%clk 0:00:16]}
71. g6 {[%clk 0:00:16.8]} 71... Kd8 {[%clk 0:00:16.9]} 72. g7 {[%clk 0:00:16.4]}
72... Ke8 {[%clk 0:00:17.8]} 73. g3 {[%clk 0:00:15.6]} 73... Kd8 {[%clk
0:00:18.2]} 74. Kf7 {[%clk 0:00:15.7]} 74... Kc8 {[%clk 0:00:17.7]} 75. g8=Q+
{[%clk 0:00:14.4]} 75... Kb7 {[%clk 0:00:18.6]} 76. g4 {[%clk 0:00:13.4]} 76...
Kc6 {[%clk 0:00:18.4]} 77. Qf8 {[%clk 0:00:13.6]} 77... Kb7 {[%clk 0:00:17.7]}
78. g5 {[%clk 0:00:13.9]} 78... Kc6 {[%clk 0:00:17.3]} 79. Ke7 {[%clk
0:00:13.7]} 79... Kb7 {[%clk 0:00:16.5]} 80. Qf5 {[%clk 0:00:12.5]} 80... Kc6
{[%clk 0:00:16.1]} 81. Qe5 {[%clk 0:00:12.6]} 81... Kb7 {[%clk 0:00:15.8]} 82.
Qc5 {[%clk 0:00:12.7]} 82... Ka6 {[%clk 0:00:09.9]} 83. Qb4 {[%clk 0:00:11.9]}
83... Ka7 {[%clk 0:00:09.3]} 84. Kd7 {[%clk 0:00:11.1]} 84... Ka6 {[%clk
0:00:08.8]} 85. Qb8 {[%clk 0:00:10.4]} 85... Ka5 {[%clk 0:00:08.3]} 86. g6
{[%clk 0:00:10.3]} 86... Ka6 {[%clk 0:00:06.3]} 87. g7 {[%clk 0:00:10.6]} 87...
Ka5 {[%clk 0:00:06]} 88. g8=Q {[%clk 0:00:11.4]} 88... Ka6 {[%clk 0:00:05.8]}
89. Qgc8+ {[%clk 0:00:09.9]} 89... Ka5 {[%clk 0:00:05.2]} 90. Kc7 {[%clk
0:00:10]} 90... Ka4 {[%clk 0:00:04]} 91. d7 {[%clk 0:00:10.6]} 91... Ka3 {[%clk
0:00:03.4]} 92. e7 {[%clk 0:00:11.5]} 92... Ka4 {[%clk 0:00:03.3]} 93. d8=Q
{[%clk 0:00:12.4]} 93... Ka3 {[%clk 0:00:03.2]} 94. e8=Q {[%clk 0:00:07.1]}
94... Ka2 {[%clk 0:00:02.1]} 95. Qf8 {[%clk 0:00:06.4]} 1-0